[Event "European Women-ch 2023"]
[Site "Petrovac"]
[Date "2023.03.18"]
[Round "1.10"]
[White "Dwilewicz, Katarzyna"]
[Black "Garifullina, Leya"]
[Result "0-1"]
[ECO "B92"]
[WhiteElo "2114"]
[BlackElo "2372"]
[Annotator "TA"]
[PlyCount "192"]
[EventDate "2023.03.15"]
[EventType "swiss"]
[EventCountry "MNE"]
[SourceTitle "playchess.com"]
[Source "ChessBase"]
[SourceQuality "1"]
[TimeControl "40/5400+30:1800+30"]

{[%evp 17,192,0,8,0,0,0,0,0,26,19,22,35,56,41,51,18,37,10,8,-16,7,9,13,0,0,0,0,0,0,0,0,0,0,0,0,0,0,-9,0,12,14,27,185,192,252,9,18,9,12,0,0,-77,-15,-37,0,0,0,-46,0,-95,-18,-18,-22,-128,-133,-214,-179,-198,-201,-195,-155,-233,-233,-240,-233,-223,-211,-241,-137,-137,-121,-121,-121,-110,-120,-123,-111,-268,-235,-255,-252,-262,-243,-349,-77,-77,-77,-77,-77,-77,-77,-78,-78,-1145,-221,-221,-87,-83,-90,-191,-191,-191,-191,-191,-191,-191,-191,-233,-233,-233,-228,-295,-295,-293,-221,-29940,-29941,-29941,-29944,-2429,-559,-29955,-29961,-29943,-29962,-29964,-29967,-29968,-29965,-29966,-29968,-29968,-29967,-29970,-29970,-29969,-29968,-29969,-29966,-29961,-625,-29973,-29972,-29984,-29985,-29985,-29986,-29986,-29985,-29987,-29986,-29986,-29985,-29992,-29988,-29988,-29984,-29983,-29984,-29985,-29985,-29989,-29986,-29986,-29987,-29987,-29988]} 1. e4 {[%emt 0:00:03]} c5 {[%emt 0:00:23]} 2. Nf3 {[%emt 0:00:14]} d6 {[%emt 0:00:11]} 3. d4 {[%emt 0:00:07]} cxd4 {[%emt 0:00:07]} 4. Nxd4 {[%emt 0:00:04]} Nf6 {[%emt 0:00:17]} 5. Nc3 {[%emt 0:00:07]} a6 {[%emt 0:00:25]} 6. Be2 {[%emt 0:00:29]} e5 {[%emt 0:00:28]} 7. Nb3 {[%emt 0:00:11]} Be7 {[%emt 0:00:05]} 8. Bg5 {[%emt 0:00:27]} Be6 {[%emt 0:01:39]} 9. Bxf6 {[%emt 0:00:56]} Bxf6 {[%emt 0:00:10]} 10. Qd3 {[%emt 0:00:24] B92: Sicilian Najdorf: 6 Be2.} Be7 $1 {[%emt 0:04:31][%mdl 4] is more profitable than 10...Nc6 at the moment.} 11. O-O-O {[%emt 0:00:47]} Nd7 {[%emt 0:01:24]} 12. Nd5 {[%emt 0:02:30] The position is equal.} Bg5+ {[%emt 0:10:16]} 13. Kb1 {[%emt 0:01:49]} Rc8 {[%emt 0:01:49]} 14. g3 {[%emt 0:04:08] [#]} Nc5 $146 {[%emt 0:09:56]} ({Predecessor:} 14... O-O 15. h4 Bf6 16. Rd2 Nb6 17. Nxf6+ Qxf6 18. Qe3 Qd8 19. f4 f6 20. Rhd1 Qc7 {1-0 Alexisco,R (2514)-Sasikiran PAL/CSS Freestyle op 3rd rapid 2006 (6)}) 15. Nxc5 {[%emt 0:01:20]} Rxc5 {[%emt 0:00:27]} 16. h4 {[%emt 0:09:19]} (16. f4 $5 {[%cal Rb2b4]} Bxd5 17. fxg5 $11 (17. exd5 exf4 18. Qe4+ Qe7 $11)) 16... Be7 {[%emt 0:05:17]} 17. Nxe7 {[%emt 0:05:51]} Kxe7 {[%emt 0:00:41]} 18. Qe3 {[%emt 0:03:49] Qg5+ is the strong threat.} Qc7 {[%emt 0:19:29]} 19. Qg5+ {[%emt 0:03:26]} Kf8 {[%emt 0:06:16]} 20. Rd2 {[%emt 0:04:12]} h6 {[%emt 0:04:02]} (20... f6 $5 21. Qe3 $8 Ke7 $11) 21. Qe3 {[%emt 0:00:29]} Ke7 {[%emt 0:00:32]} 22. f4 {[%emt 0:07:13]} Rc8 {[%emt 0:01:59][%cal Rc5c2]} 23. Rc1 {[%emt 0:09:45]} Qa5 {[%emt 0:06:28][%csl Ge6][%cal Ra5a2]} 24. a3 {[%emt 0:11:51]} f6 {[%emt 0:07:27]} 25. f5 {[%emt 0:04:07]} (25. Qd3 d5 26. c3 d4 $17) 25... Bf7 {[%emt 0:02:14][%cal Oc5c3]} 26. g4 {[%emt 0:01:15]} (26. Qd3 d5 27. b4 Qb6 $19) 26... Qa4 $40 {[%emt 0:02:43][%mdl 128] Black has some attack.} 27. Bd1 {[%emt 0:14:54]} Qc6 {[%emt 0:07:33]} (27... Rc3 {is more complex.} 28. Qb6 R3c6 29. Qxb7+ R8c7) 28. g5 {[%emt 0:02:48]} hxg5 {[%emt 0:01:04]} 29. hxg5 {[%emt 0:00:03]} b5 $2 {[%emt 0:00:59]} (29... Rc4 $11 {and Black stays safe.}) 30. Rh2 $1 $18 {[%emt 0:05:58]} Rc4 {[%emt 0:01:25]} (30... d5 $142) 31. Bf3 $2 {[%emt 0:02:19]} (31. gxf6+ $1 $18 gxf6 32. Qa7+ Qc7 33. Qg1) 31... b4 $1 $11 {[%emt 0:01:02]} 32. gxf6+ {[%emt 0:03:44]} gxf6 {[%emt 0:01:01] aiming for ...bxa3.} 33. axb4 {[%emt 0:01:19]} Rxb4 {[%emt 0:00:43]} 34. c3 {[%emt 0:00:32]} (34. b3 $11 {remains equal.}) 34... Rb7 {[%emt 0:01:21]} (34... Qc4 $1 $17 {[%cal Rc4a2] And now ...Qa2+ would win.} 35. Rcc2 (35. cxb4 $2 Qa2#) (35. Qa7+ $2 Rc7 $19) 35... Qa2+ 36. Kc1 Qa1+ 37. Kd2 Rxb2) 35. c4 {[%emt 0:00:30]} Rcb8 {[%emt 0:01:33][%cal Ob7b3]} (35... Bxc4 $2 36. Rxc4 Qxc4 37. Rh7+ Kd8 38. Rxb7 $18) (35... Qa4 $5 36. Bd1 Qb4 $15) 36. Rc3 {[%emt 0:00:40]} Qa4 {[%emt 0:01:10]} (36... Bxc4 $2 37. Rhc2 Qb6 38. Qxb6 Rxb6 39. Rxc4 $18) 37. Qd3 {[%emt 0:00:42]} (37. Qc1 $11) 37... Rb4 {[%emt 0:00:52]} (37... Rb3 $1 $15 {feels stronger.}) 38. Rd2 {[%emt 0:00:22]} (38. Ra3 Qc6 39. Rc2 Qb6 $17) (38. Bd1 $11 Qa5 39. Bb3) 38... R8b6 {[%emt 0:00:31]} (38... Bxc4 39. Qxd6+ Kf7 40. Bh5+ Kg8 41. Rg3+ (41. Qxf6 Qa2+ 42. Kc2 Rxb2+ 43. Kd1 Rb1+ 44. Rc1 Rxc1+ {[%mdl 64] Remove Defender, Back Rank} 45. Kxc1 Rb1#) 41... Kh7 42. Qe7+ (42. Qxf6 Qa2+ 43. Kc1 Qa1+ 44. Kc2 Qxb2+ 45. Kd1 Qb1#) 42... Kh6 43. Qxf6+ Kxh5 44. Rh2#) ({Black should try} 38... Qc6 $1 $17 {[%cal Rf7c4]} 39. Rdc2 Qb6) 39. Bd1 {[%emt 0:00:31]} Qa5 {[%emt 0:00:11]} 40. Ra3 {[%emt 0:00:00]} (40. Bb3 $11) 40... Qc5 $17 {[%emt 0:00:00]} 41. Ra4 {[%emt 0:09:28]} (41. Qe3 $17) 41... Qxc4 {[%emt 0:09:55]} (41... Bxc4 42. Qc3) 42. Qxc4 {[%emt 0:01:13]} Rxc4 {[%emt 0:00:16]} 43. Rxc4 {[%emt 0:00:19]} Bxc4 $19 {[%emt 0:00:05][%mdl 4096] Endgame KRB-KRB} 44. b3 {[%emt 0:02:25]} (44. Kc1 $17) 44... a5 {[%emt 0:04:41]} (44... Bxb3 45. Rb2 Bxd1 46. Rxb6 $11) 45. Ka2 {[%emt 0:02:07]} Bf7 {[%emt 0:00:41]} 46. Ka3 {[%emt 0:00:09]} Rb4 {[%emt 0:00:37]} 47. Bc2 {[%emt 0:00:17]} Rb5 {[%emt 0:03:16]} (47... d5 $19 48. exd5 e4 49. d6+ Kd7) 48. Rh2 $17 {[%emt 0:05:00]} Rc5 {[%emt 0:01:07]} 49. Kb2 {[%emt 0:00:36]} d5 {[%emt 0:00:53]} 50. exd5 {[%emt 0:00:24]} Bxd5 {[%emt 0:00:18]} 51. Rh7+ {[%emt 0:00:17]} Kf8 {[%emt 0:00:47] Black is more active.} 52. Bd3 $2 {[%emt 0:07:27]} (52. Rh4 $17 {might work better.}) 52... e4 $19 {[%emt 0:01:45]} 53. Be2 {[%emt 0:00:13]} Ke8 $1 {[%emt 0:04:09]} 54. Bh5+ {[%emt 0:07:19]} Kd8 $1 {[%emt 0:00:29]} 55. Bg6 {[%emt 0:00:58]} (55. Bd1 $142) 55... Bc6 $2 {[%emt 0:03:11]} (55... Rb5 $19 {has better winning chances.} 56. Kc3 Rxb3+ 57. Kd4 Rd3+ 58. Kc5 a4 59. Rh8+ Kc7 60. Rh7+ Kb8 61. Rh8+ Ka7 62. Rh7+ Kb8 63. Rh8+ Kc7 64. Rh7+ Kb8) 56. Rf7 $17 {[%emt 0:00:20]} e3 {[%emt 0:03:47]} 57. Rxf6 {[%emt 0:00:06]} Bd7 $1 {[%emt 0:02:25] Dodges Re6} 58. Rf8+ {[%emt 0:00:59] [#]} Ke7 $1 {[%emt 0:00:46][%cal Oe3e2] ( -> ...e2!)} 59. Rh8 {[%emt 0:00:15]} Kf6 {[%emt 0:00:59][%cal Oe3e2] Threatens to win with ...e2!} (59... Bxf5 $6 60. Bxf5 e2 61. Rh1 (61. Rh7+ $2 Kf6 $19) 61... Rxf5 62. Re1 $11) 60. Rh3 $2 {[%emt 0:00:51][%mdl 8192]} (60. Rh1 $17) 60... Re5 $2 {[%emt 0:00:18]} (60... Bxf5 61. Bxf5 e2 62. Re3 Kxf5 63. Rxe2 $11) (60... e2 61. Rh1 Bc6) 61. Bh5 $19 {[%emt 0:00:27]} e2 {[%emt 0:01:18]} (61... Rxf5 62. Be2 $15 (62. Rxe3 $2 Rxh5 63. Ka3 Bb5 $19)) (61... Bxf5 $19 62. Rh1 Be4 63. Rf1+ Rf5) 62. Bxe2 $17 {[%emt 0:00:06]} Rxe2+ {[%emt 0:00:01] KRB-KR} 63. Ka3 {[%emt 0:00:36] [#]} (63. Kc3 $17 {was the only defense.}) 63... Re5 $1 $19 {[%emt 0:00:48]} (63... Bxf5 64. Rh6+ Kg5 65. Ra6 $15) 64. Rf3 {[%emt 0:00:48]} Rd5 {[%emt 0:00:41]} (64... Bxf5 65. b4 $15) (64... Rxf5 65. Rxf5+ Bxf5 66. Ka4 $11) 65. Rf2 {[%emt 0:00:31]} Rd3 {[%emt 0:00:09]} (65... Bxf5 66. b4 $15) (65... Rxf5 66. Rxf5+ Bxf5 67. Ka2 $11) 66. Kb2 {[%emt 0:00:30]} Be8 {[%emt 0:00:26]} (66... Bxf5 67. Rf4 $15) 67. Kc2 {[%emt 0:00:25]} Re3 {[%emt 0:00:26] ...Bf7 would be deadly.} 68. Rd2 {[%emt 0:00:23]} Bf7 {[%emt 0:00:35]} (68... Kxf5 $2 {loses.} 69. Rd8 $19) 69. Rd3 {[%emt 0:00:13]} Re2+ {[%emt 0:00:24]} 70. Kc3 {[%emt 0:00:15]} Re5 {[%emt 0:00:27][%cal Oe5b5] Strongly threatening ...Rb5!} 71. Rf3 $2 {[%emt 0:01:09]} (71. Kb2 $19) 71... Rb5 {[%emt 0:00:06]} (71... Rxf5 72. Rxf5+ Kxf5 73. b4 $11 (73. Kb2 Bg8 $11)) 72. Kc2 {[%emt 0:00:19]} Bd5 {[%emt 0:00:10]} ({Inferior is} 72... Rxf5 73. Rxf5+ Kxf5 74. Kc3 $11) 73. Re3 {[%emt 0:00:45]} Kxf5 {[%emt 0:00:05]} (73... Kg5 $142 74. Rc3 Kxf5) 74. Rg3 {[%emt 0:00:33]} Ke5 {[%emt 0:00:36]} 75. Rc3 {[%emt 0:00:20]} Kd6 {[%emt 0:00:51]} 76. Rg3 {[%emt 0:00:32]} Rb8 {[%emt 0:00:27]} 77. Rc3 {[%emt 0:00:29]} Rb7 {[%emt 0:01:16]} 78. Rg3 {[%emt 0:00:30]} Kc5 {[%emt 0:00:14]} 79. Rh3 {[%emt 0:00:37]} Rb4 {[%emt 0:00:37]} 80. Rg3 {[%emt 0:00:23]} Rf4 {[%emt 0:00:47]} 81. Kc3 {[%emt 0:00:19]} Rf2 {[%emt 0:00:20]} 82. Re3 {[%emt 0:00:41]} Rg2 {[%emt 0:01:02]} 83. Rh3 {[%emt 0:00:23]} Ra2 {[%emt 0:00:21]} (83... Re2 $142 84. Rg3 Rh2 85. Rg5 Rh3+ 86. Kc2 Kc6 87. Rg6+ Kb5 88. Rg5 Kc5 89. Rf5 Kd4 90. Rf4+ Ke5 91. Rg4 Bxb3+ 92. Kb2 a4 93. Rg7 Kd4 94. Rg4+ Kc5 95. Rg7 Bd5 96. Rg4 a3+ 97. Kc2 Rh1 98. Ra4 a2 99. Kd3 a1=Q 100. Rxa1 Rxa1 101. Ke2 Ra3 102. Ke1 Ra2 103. Kf1 Kd4 104. Ke1 Bb3 105. Kf1 Ke3 106. Kg1 Bd5 107. Kf1 Ra1#) 84. Re3 {[%emt 0:00:31]} Rf2 {[%emt 0:00:08] Black mates.} 85. Rh3 {[%emt 0:00:20]} Be4 {[%emt 0:00:10][%csl Ge4][%cal Rf2c2]} 86. Rh5+ {[%emt 0:00:52]} Bf5 {[%emt 0:00:04][%csl Gf5][%cal Rf2c2]} 87. b4+ {[%emt 0:00:07]} axb4+ {[%emt 0:00:04]} 88. Kb3 {[%emt 0:00:03]} Rf3+ {[%emt 0:00:20]} 89. Kb2 {[%emt 0:00:06]} Kb5 {[%emt 0:00:28]} 90. Ka2 {[%emt 0:00:28]} Ka4 {[%emt 0:00:05]} 91. Rh2 {[%emt 0:00:21]} Be6+ {[%emt 0:00:14]} 92. Kb2 {[%emt 0:00:06]} Rb3+ {[%emt 0:00:07]} 93. Ka1 {[%emt 0:00:12]} Rh3 {[%emt 0:00:38]} 94. Re2 {[%emt 0:00:21]} Bc4 {[%emt 0:00:13]} 95. Rd2 {[%emt 0:00:27]} Re3 {[%emt 0:00:28]} 96. Kb2 {[%emt 0:00:10]} Re2 {[%emt 0:00:08] What a bad dream for White.   Weighted Error Value: White=0.36/Black=0.37} 0-1

[Event "European Women-ch 2023"]
[Site "Petrovac"]
[Date "2023.03.18"]
[Round "1.10"]
[White "Karaivanova, Petya"]
[Black "Antolak, Julia"]
[Result "0-1"]
[ECO "B66"]
[WhiteElo "1875"]
[BlackElo "2276"]
[Annotator "TA"]
[PlyCount "72"]
[EventDate "2023.03.15"]
[EventType "swiss"]
[EventCountry "MNE"]
[SourceTitle "playchess.com"]
[Source "ChessBase"]
[SourceQuality "1"]
[TimeControl "40/5400+30:1800+30"]

{[%evp 14,72,45,0,8,12,9,3,22,10,19,20,16,-24,0,-22,0,-118,-122,-127,-125,-115,-123,-156,-153,-209,-212,-199,-210,-216,-202,-216,-210,-189,-227,-203,-214,-256,-247,-250,-236,-240,-72,-163,-152,-158,-105,-124,-17,-21,-21,-18,-18,-76,-62,-93,-35,-428,-423,-650,-649]} 1. e4 {[%emt 0:09:31]} c5 {[%emt 0:00:09]} 2. Nf3 {[%emt 0:00:06]} Nc6 {[%emt 0:00:06]} 3. d4 {[%emt 0:00:06]} cxd4 {[%emt 0:00:05]} 4. Nxd4 {[%emt 0:00:11]} Nf6 {[%emt 0:00:07]} 5. Nc3 {[%emt 0:00:05]} d6 {[%emt 0:00:03]} 6. Bg5 {[%emt 0:00:06]} e6 {[%emt 0:00:09]} 7. Qd2 {[%emt 0:00:25]} a6 {[%emt 0:00:15]} 8. f3 {[%emt 0:00:08]} Be7 {[%emt 0:04:18] B66: Sicilian: Richter-Rauzer: 7...a6 8 0-0-0 h6.} 9. h4 {[%emt 0:00:07]} Nxd4 {[%emt 0:08:29]} 10. Qxd4 {[%emt 0:00:06]} Qc7 {[%emt 0:01:06] The position is equal.} 11. O-O-O {[%emt 0:01:54]} b5 {[%emt 0:01:32][%cal Bb7b5,Bb5b4][%mdl 32]} 12. g4 {[%emt 0:01:18]} Bb7 {[%emt 0:03:46] [#]} 13. Rh3 $146 {[%emt 0:12:28]} ({Predecessor:} 13. Qd2 Rc8 14. Bd3 b4 15. Ne2 d5 16. Bxf6 gxf6 17. Kb1 dxe4 18. fxe4 Qe5 19. Nd4 {1-0 Lupulescu,C (2566)-Ivanov,A (2462) Ciocaltea Memorial 2007}) 13... Rc8 {[%emt 0:05:09]} 14. Qd2 {[%emt 0:01:47]} b4 {[%emt 0:19:45]} 15. Bxf6 {[%emt 0:16:55]} (15. Ne2 $11 {was the only way to keep the balance.}) 15... Bxf6 $17 {[%emt 0:02:26]} 16. Ne2 {[%emt 0:00:13]} d5 {[%emt 0:02:28]} 17. g5 {[%emt 0:02:19]} Be7 {[%emt 0:01:41] Black is more active.} 18. exd5 {[%emt 0:02:37]} Bxd5 {[%emt 0:00:46]} 19. Nf4 {[%emt 0:03:52]} (19. Kb1 $17) 19... Bxa2 $19 {[%emt 0:07:11]} ({And not} 19... Bb7 20. Kb1 $17) 20. Bxa6 {[%emt 0:02:30]} Rb8 {[%emt 0:13:52]} 21. Nh5 {[%emt 0:07:52]} O-O $1 {[%emt 0:01:04] And now ...Rfd8 would win.} 22. Qd7 {[%emt 0:02:34] Inhibits Rfd8.} Qc5 {[%emt 0:04:50]} 23. Qd4 {[%emt 0:01:29]} Qxd4 {[%emt 0:00:27]} 24. Rxd4 {[%emt 0:00:04]} Bc5 {[%emt 0:00:09]} 25. Re4 {[%emt 0:01:22]} Bd5 {[%emt 0:01:24] Against b3} 26. Re1 {[%emt 0:00:45]} b3 {[%emt 0:04:47]} 27. Nf4 {[%emt 0:02:50] [#]} Bc6 {[%emt 0:02:15]} (27... Ra8 $1 $19 {[%cal Ra8a6] and Black stays clearly on top.} 28. Bd3 bxc2 29. Kxc2 Bb4) 28. Bc4 {[%emt 0:00:45] [#]} (28. Nd3 $17 {keeps fighting.} Bd6 29. cxb3) 28... bxc2 $1 {[%emt 0:03:11] Hoping for ...Rfc8.} 29. Kxc2 {[%emt 0:02:45]} Bd4 {[%emt 0:00:22] A strong pair of Bishops.} (29... Rfc8 $142 30. Nd3 Bd4) 30. b3 $17 {[%emt 0:02:11] Prevents Ba4} Ra8 {[%emt 0:00:18]} ({Black should play} 30... Rfc8 $17 {...Ra8 is the strong threat.} 31. Nxe6 fxe6 32. Bxe6+ Kf8 33. Bxc8 Rxc8) 31. Nxe6 $1 $11 {[%emt 0:04:07][%mdl 64] Double Attack} Bd7 $36 {[%emt 0:04:27][%mdl 2112] Pin. Black has some pressure.} ({Don't take} 31... fxe6 32. Rxe6 Bd7 33. Re7+ Kh8 34. Rxd7 $16) 32. Nxd4 {[%emt 0:09:08]} Bxh3 {[%emt 0:00:07]} 33. Kc3 {[%emt 0:00:52]} (33. b4 $1 $11 {remains equal.}) 33... Rfe8 $17 {[%emt 0:01:33]} 34. Rd1 {[%emt 0:02:11]} Rad8 {[%emt 0:00:23]} (34... Re3+ $17 35. Rd3 Re1) 35. Rb1 $2 {[%emt 0:03:47][%mdl 8192]} (35. b4 $15) 35... Re3+ $19 {[%emt 0:00:46]} 36. Bd3 {[%emt 0:00:18] [#]} (36. Kd2 $142 Rxf3 37. Ke2) 36... Rxd3+ $1 {[%emt 0:00:14][%mdl 576] Remove Defender.   Weighted Error Value: White=0.47/Black=0.17 (very precise)} 0-1

[Event "European Women-ch 2023"]
[Site "Petrovac"]
[Date "2023.03.18"]
[Round "1.11"]
[White "Danielian, Elina"]
[Black "Gaboyan, Susanna"]
[Result "1/2-1/2"]
[ECO "B38"]
[WhiteElo "2431"]
[BlackElo "2160"]
[Annotator "TA"]
[PlyCount "105"]
[EventDate "2023.03.15"]
[EventType "swiss"]
[EventCountry "MNE"]
[SourceTitle "playchess.com"]
[Source "ChessBase"]
[SourceQuality "1"]
[TimeControl "40/5400+30:1800+30"]

{[%evp 20,105,53,35,65,26,29,36,27,18,36,36,40,35,35,18,41,14,12,12,11,9,10,11,12,0,10,7,23,27,27,17,12,18,29,22,22,14,50,32,57,35,95,89,108,103,222,84,66,101,83,90,70,74,93,15,17,15,15,15,15,15,15,15,15,15,15,15,587,0,0,0,0,0,0,0,0,0,0,0,0,0,0,0,0,0,0,0]} 1. Nf3 {[%emt 0:21:20]} Nf6 {[%emt 0:00:22]} 2. c4 {[%emt 0:00:05]} g6 {[%emt 0:00:54]} 3. Nc3 {[%emt 0:00:06]} c5 {[%emt 0:01:35]} 4. d4 {[%emt 0:03:12]} cxd4 {[%emt 0:00:59]} 5. Nxd4 {[%emt 0:00:00]} Bg7 {[%emt 0:00:45]} 6. e4 {[%emt 0:00:00]} d6 {[%emt 0:00:29]} 7. Be2 {[%emt 0:00:00]} Nc6 {[%emt 0:02:13]} 8. Be3 {[%emt 0:00:00]} O-O {[%emt 0:02:34]} 9. O-O {[%emt 0:00:00]} a6 {[%emt 0:03:27]} 10. Rc1 {[%emt 0:00:00]} Bd7 {[%emt 0:04:00]} 11. Nb3 {[%emt 0:00:00]} Ne5 {[%emt 0:14:25] B38: Sicilian: Maroczy Bind with 5...Bg7 and 7...0-0.} 12. Nd5 {[%emt 0:02:50]} Nxd5 {[%emt 0:10:36]} ({But not} 12... Nxe4 13. Bb6 Qe8 14. Nc7 $16) 13. cxd5 {[%emt 0:08:50] [#] Strongly threatening f4.} Bb5 {[%emt 0:10:52] [#] White is slightly better.} 14. Nd4 $146 {[%emt 0:03:13]} ({Predecessor:} 14. Bd4 Qd7 15. Rc3 Bxe2 16. Qxe2 Rfc8 17. Rfc1 Rxc3 18. Rxc3 Rc8 19. f4 Rxc3 20. Bxc3 Ng4 21. Bxg7 Kxg7 22. Qc2 Nf6 23. Qe2 Ng4 24. Qc2 Nf6 25. Qe2 Ng4 26. Qc2 {½-½ Darga,K-Taimanov,M Capablanca Memorial-03 1964 (17)}) 14... Bxe2 {[%emt 0:05:53]} 15. Qxe2 {[%emt 0:00:04]} Qa5 {[%emt 0:09:09]} 16. b3 {[%emt 0:10:31]} Rfc8 {[%emt 0:00:54]} 17. h3 {[%emt 0:00:10]} Qd8 {[%emt 0:02:14]} 18. f4 {[%emt 0:03:07]} Nd7 {[%emt 0:00:38]} 19. Nf3 {[%emt 0:00:13]} Rxc1 {[%emt 0:03:18]} 20. Rxc1 {[%emt 0:00:05]} Rc8 {[%emt 0:00:14] Wards off Qc2} 21. Rc4 {[%emt 0:01:42]} Nf6 {[%emt 0:11:11][%cal Bd7f6,Bf6e8,Be8c7][%mdl 32]} 22. Kh2 {[%emt 0:01:07]} Rxc4 {[%emt 0:01:56]} 23. Qxc4 {[%emt 0:00:04]} Ne8 {[%emt 0:08:16]} 24. a4 {[%emt 0:19:27]} Qc7 {[%emt 0:00:30]} 25. g4 {[%emt 0:04:56]} Qxc4 {[%emt 0:01:52]} 26. bxc4 $11 {[%emt 0:00:02][%mdl 4096] Endgame KBN-KBN} Bc3 {[%emt 0:00:20]} 27. g5 {[%emt 0:12:25]} Nc7 {[%emt 0:00:40]} 28. Nd4 {[%emt 0:04:35]} Bb4 {[%emt 0:03:30]} 29. Kg3 {[%emt 0:02:08]} Bc5 {[%emt 0:00:05]} 30. Kf3 {[%emt 0:00:20]} Na8 {[%emt 0:00:50]} (30... a5 $14) 31. Nb3 $16 {[%emt 0:00:51]} b6 {[%emt 0:00:46]} 32. e5 {[%emt 0:02:21]} Nc7 {[%emt 0:00:30]} (32... Bxe3 $16 {keeps fighting.} 33. Kxe3 Nc7) 33. a5 {[%emt 0:01:52]} (33. Bxc5 $18 {and White stays clearly on top.} bxc5 34. Na5) 33... Bxe3 {[%emt 0:00:15]} 34. Kxe3 {[%emt 0:00:04] KN-KN} b5 {[%emt 0:00:28]} 35. Kd4 {[%emt 0:01:36]} bxc4 {[%emt 0:00:08]} 36. Kxc4 {[%emt 0:00:32]} Nb5 {[%emt 0:00:31]} 37. Nd2 {[%emt 0:00:11]} (37. Nc1 $16) 37... Kg7 {[%emt 0:01:07]} 38. Ne4 {[%emt 0:00:36]} h6 {[%emt 0:00:28]} 39. h4 {[%emt 0:00:47]} hxg5 {[%emt 0:00:05]} 40. hxg5 {[%emt 0:00:00]} Kf8 {[%emt 0:00:00]} 41. Kd3 {[%emt 0:00:38]} Ke8 {[%emt 0:01:25]} 42. Nd2 {[%emt 0:05:17]} Kd7 {[%emt 0:01:19]} 43. Nc4 {[%emt 0:00:29]} e6 $2 {[%emt 0:11:20][%mdl 8192] [#]} (43... Ke8 $11 {and Black is okay.}) 44. exd6 $2 {[%emt 0:08:43]} (44. dxe6+ $1 $18 Kxe6 45. Nxd6) 44... exd5 $11 {[%emt 0:01:22] The position is equal.} 45. Ne5+ {[%emt 0:00:03]} Kxd6 {[%emt 0:00:07]} 46. Nxf7+ {[%emt 0:00:04]} Ke6 {[%emt 0:00:10]} 47. Ne5 {[%emt 0:00:04]} Kf5 {[%emt 0:00:44]} 48. Ke3 {[%emt 0:00:05]} Nd6 {[%emt 0:03:08]} 49. Nc6 {[%emt 0:01:00]} Nc4+ {[%emt 0:00:30]} 50. Kf3 {[%emt 0:01:39][%cal Rc6d4]} Nd2+ {[%emt 0:00:08]} 51. Ke2 {[%emt 0:00:15]} Nc4 {[%emt 0:00:18]} 52. Kf3 {[%emt 0:01:13][%cal Rc6d4]} Nd2+ {[%emt 0:00:07]} 53. Ke2 {[%emt 0:02:02] Weighted Error Value: White=0.25 (precise) /Black=0.28 (precise)} 1/2-1/2